fUST/lending_fUST_20240826
["ID","MTS","AMOUNT","RATE_DAILY","PERIOD"]
[335977507,1724649056213,-1121.95,0.00013105,2]
[335977508,1724649056223,-500.0,0.00013105,2]
[335977509,1724649056233,-609.68,0.00013105,2]
[335977510,1724649056243,-660.54,0.00013105,2]
[335977511,1724649056252,-654.35,0.00013105,2]
[335977512,1724649056262,-163.05606085,0.00013105,2]
[335977513,1724649056273,-961.85,0.00013105,2]
[335977514,1724649056283,-1056.58,0.00013105,2]
[335977515,1724649056293,-500.0,0.00013105,2]
[335977516,1724649056302,-500.0,0.00013105,2]
[335977517,1724649056312,-555.4,0.00013105,2]
[335977518,1724649056321,-517.36,0.00013105,2]
[335977519,1724649056330,-827.46,0.00013105,2]
[335977520,1724649056341,-500.0,0.00013105,2]
[335977521,1724649056351,-500.0,0.00013105,2]
[335977522,1724649056360,-500.0,0.00013105,2]
[335977523,1724649056370,-500.0,0.00013105,2]
[335977524,1724649056381,-519.04,0.00013105,2]
[335977525,1724649056393,-830.02,0.00013105,2]
[335977526,1724649056403,-536.42,0.00013105,2]
[335977527,1724649056414,-947.6,0.00013105,2]
[335977528,1724649056424,-500.0,0.00013105,2]
[335977529,1724649056435,-1003.14,0.00013105,2]
[335977530,1724649056445,-757.26,0.00013105,2]
[335977531,1724649056457,-500.0,0.00013105,2]
[335977532,1724649056466,-500.0,0.00013105,2]
[335977533,1724649056476,-500.0,0.00013105,2]
[335977534,1724649056487,-500.0,0.00013105,2]
[335977535,1724649056498,-798.89,0.00013105,2]
[335977536,1724649056510,-707.52,0.00013105,2]
[335977537,1724649056521,-1168.99,0.00013105,2]
[335977538,1724649056531,-694.96,0.00013105,2]
[335977539,1724649056542,-589.78,0.00013105,2]
[335977540,1724649056554,-863.09,0.00013105,2]
[335977541,1724649056565,-640.26,0.00013105,2]
[335977542,1724649056574,-500.0,0.00013105,2]
[335977543,1724649056586,-662.41,0.00013105,2]
[335977544,1724649056597,-500.0,0.00013105,2]
[335977545,1724649056608,-500.0,0.00013105,2]
[335977546,1724649056619,-657.06,0.00013105,2]
[335977547,1724649056629,-500.0,0.00013105,2]
[335977548,1724649056640,-1098.49,0.00013105,2]
[335977549,1724649056651,-500.0,0.00013105,2]
[335977550,1724649056662,-500.0,0.00013105,2]
[335977551,1724649056672,-500.0,0.00013105,2]
[335977552,1724649056682,-500.0,0.00013105,2]
[335977553,1724649056692,-500.0,0.00013105,2]
[335977554,1724649056701,-500.0,0.00013105,2]
[335977555,1724649056711,-555.54,0.00013105,2]
[335977556,1724649056722,-1037.99,0.00013105,2]
[335977557,1724649056732,-500.0,0.00013105,2]
[335977558,1724649056742,-500.0,0.00013105,2]
[335977559,1724649056752,-852.27,0.00013105,2]
[335977560,1724649056763,-500.0,0.00013105,2]
[335977561,1724649056772,-500.0,0.00013105,2]
[335977562,1724649056786,-500.0,0.00013105,2]
[335977563,1724649056795,-500.0,0.00013105,2]
[335977564,1724649056805,-500.0,0.00013105,2]
[335977565,1724649056814,-505.85,0.00013105,2]
[335977566,1724649056824,-569.31,0.00013105,2]
[335977567,1724649056835,-500.0,0.00013105,2]
[335977568,1724649056844,-500.0,0.00013105,2]
[335977569,1724649056854,-546.22,0.00013105,2]
[335977570,1724649056865,-812.37,0.00013105,2]
[335977571,1724649056875,-504.99,0.00013105,2]
[335977572,1724649056886,-500.0,0.00013105,2]
[335977573,1724649056898,-1205.5,0.00013105,2]
[335977574,1724649056910,-500.0,0.00013105,2]
[335977575,1724649056920,-646.06,0.00013105,2]
[335977576,1724649056931,-500.0,0.00013105,2]
[335977577,1724649056945,-500.0,0.00013105,2]
[335977578,1724649056955,-420.84365521,0.00013105,2]
[335977579,1724649056965,-500.0,0.00013105,2]
[335977580,1724649056975,-500.0,0.00013105,2]
[335977581,1724649056985,-532.7,0.00013105,2]
[335977582,1724649056995,-1099.24,0.00013105,2]
[335977583,1724649057005,-500.0,0.00013105,2]
[335977584,1724649057015,-500.0,0.00013105,2]
[335977585,1724649057026,-1088.34,0.00013105,2]
[335977586,1724649057035,-500.0,0.00013105,2]
[335977587,1724649057046,-500.0,0.00013105,2]
[335977588,1724649057056,-500.0,0.00013105,2]
[335977589,1724649057066,-721.03,0.00013105,2]
[335977590,1724649057076,-823.46,0.00013105,2]
[335977591,1724649057086,-573.51,0.00013105,2]
[335977592,1724649057096,-609.67,0.00013105,2]
[335977593,1724649057106,-500.0,0.00013105,2]
[335977594,1724649057116,-500.0,0.00013105,2]
[335977595,1724649057127,-500.0,0.00013105,2]
[335977596,1724649057138,-1188.03,0.00013105,2]
[335977597,1724649057149,-500.0,0.00013105,2]
[335977598,1724649057160,-991.92,0.00013105,2]
[335977599,1724649057170,-500.0,0.00013105,2]
[335977600,1724649057181,-529.81,0.00013105,2]
[335977601,1724649057191,-11872.55,0.00013105,2]
[335977602,1724649057202,-718.89,0.00013105,2]
[335977603,1724649057213,-500.0,0.00013105,2]
[335977604,1724649057224,-3163.64,0.00013105,2]
[335977605,1724649057235,-500.0,0.00013105,2]
[335977606,1724649057245,-907.29,0.00013105,2]
[335977607,1724649057255,-701.54,0.00013105,2]
[335977608,1724649057265,-807.87,0.00013105,2]
[335977609,1724649057275,-586.49,0.00013105,2]
[335977610,1724649057286,-500.0,0.00013105,2]
[335977611,1724649057295,-890.36,0.00013105,2]
[335977612,1724649057307,-539.88,0.00013105,2]
[335977613,1724649057318,-500.0,0.00013105,2]
[335977614,1724649057330,-4142.01,0.00013105,2]
[335977615,1724649057342,-500.0,0.00013105,2]
[335977616,1724649057354,-586.15,0.00013105,2]
[335977617,1724649057366,-707.68,0.00013105,2]
[335977618,1724649057376,-500.0,0.00013105,2]
[335977619,1724649057387,-1199.0,0.00013105,2]
[335977620,1724649057399,-584.16,0.00013105,2]
[335977621,1724649057409,-500.0,0.00013105,2]
[335977622,1724649057421,-500.0,0.00013105,2]
[335977623,1724649057432,-549.32,0.00013105,2]
[335977624,1724649057445,-500.0,0.00013105,2]
[335977625,1724649057455,-561.76,0.00013105,2]
[335977626,1724649057466,-1481.24,0.00013105,2]
[335977627,1724649057475,-896.92,0.00013105,2]
[335977628,1724649057485,-500.0,0.00013105,2]
[335977629,1724649057495,-4972.42,0.00013105,2]
[335977630,1724649057505,-685.39,0.00013105,2]
[335977631,1724649057515,-500.0,0.00013105,2]
[335977632,1724649057526,-500.0,0.00013105,2]
[335977633,1724649057536,-500.0,0.00013105,2]
[335977634,1724649057546,-500.0,0.00013105,2]
[335977635,1724649057558,-991.5,0.00013105,2]
[335977636,1724649057569,-500.0,0.00013105,2]
[335977637,1724649057580,-500.0,0.00013105,2]
[335977638,1724649057591,-500.0,0.00013105,2]
[335977639,1724649057602,-783.42,0.00013105,2]
[335977640,1724649057613,-3638.94,0.00013105,2]
[335977641,1724649057624,-500.0,0.00013105,2]
[335977642,1724649057635,-500.0,0.00013105,2]
[335977643,1724649057646,-1088.09,0.00013105,2]
[335977644,1724649057656,-1180.36,0.00013105,2]
[335977645,1724649057667,-744.15,0.00013105,2]
[335977646,1724649057676,-710.17,0.00013105,2]
[335977647,1724649057687,-1187.51,0.00013105,2]
[335977648,1724649057698,-500.0,0.00013105,2]
[335977649,1724649057708,-508.44,0.00013105,2]
[335977650,1724649057720,-500.0,0.00013105,2]
[335977651,1724649057730,-29650.33,0.00013105,2]
[335977652,1724649057744,-981.14,0.00013105,2]
[335977653,1724649057757,-500.0,0.00013105,2]
[335977654,1724649057768,-701.87,0.00013105,2]
[335977655,1724649057778,-500.0,0.00013105,2]
[335977656,1724649057792,-500.0,0.00013105,2]
[335977657,1724649057802,-679.8,0.00013105,2]
[335977658,1724649057812,-805.49,0.00013105,2]
[335977659,1724649057823,-610.2,0.00013105,2]
[335977660,1724649057832,-500.0,0.00013105,2]
[335977661,1724649057843,-788.75,0.00013105,2]
[335977662,1724649057853,-169.57906181,0.00013105,2]
[335977663,1724649057864,-675.28,0.00013105,2]
[335977664,1724649057874,-593.07,0.00013105,2]
[335977665,1724649057884,-500.0,0.00013105,2]
[335977666,1724649057894,-1718.49,0.00013105,2]
[335977667,1724649057904,-1398.35,0.00013105,2]
[335977668,1724649057914,-500.0,0.00013105,2]
[335977669,1724649057924,-500.0,0.00013105,2]
[335977670,1724649057934,-520.05,0.00013105,2]
[335977671,1724649057944,-500.0,0.00013105,2]
[335977672,1724649057954,-570.42,0.00013105,2]
[335977673,1724649057963,-2491.26,0.00013105,2]
[335977674,1724649057974,-10459.86,0.00013105,2]
[335977675,1724649057984,-629.3,0.00013105,2]
[335977676,1724649057994,-868.7,0.00013105,2]
[335977677,1724649058157,-5482.6,0.00013105,2]
[335977678,1724649058167,-768.14,0.00013105,2]
[335977679,1724649058177,-830.31,0.00013105,2]
[335977680,1724649058186,-761.71,0.00013105,2]
[335977681,1724649058196,-709.68,0.00013105,2]
[335977682,1724649058206,-550.31,0.00013105,2]
[335977683,1724649058215,-522.0,0.00013105,2]
[335977684,1724649058225,-1224.79,0.00013105,2]
[335977685,1724649058234,-1272.23,0.00013105,2]
[335977686,1724649058244,-533.64,0.00013105,2]
[335977687,1724649058254,-500.0,0.00013105,2]
[335977688,1724649058263,-1094.05,0.00013105,2]
[335977689,1724649058273,-552.49,0.00013105,2]
[335977690,1724649058282,-524.22,0.00013105,2]
[335977691,1724649058292,-500.0,0.00013105,2]
[335977692,1724649058302,-500.0,0.00013105,2]
[335977693,1724649058311,-500.0,0.00013105,2]
[335977694,1724649058321,-500.0,0.00013105,2]
[335977695,1724649058331,-7499.03,0.00013105,2]
[335977696,1724649058340,-1451.82,0.00013105,2]
[335977697,1724649058350,-693.44,0.00013105,2]
[335977698,1724649058359,-686.76,0.00013105,2]
[335977699,1724649058370,-514.44,0.00013105,2]
[335977700,1724649058379,-587.37,0.00013105,2]
[335977701,1724649058389,-500.0,0.00013105,2]
[335977702,1724649058398,-895.25,0.00013105,2]
[335977703,1724649058407,-187.10364623,0.00013105,2]
[335977704,1724649058416,-500.0,0.00013105,2]
[335977705,1724649058426,-500.0,0.00013105,2]
[335977706,1724649058435,-500.0,0.00013105,2]
[335977707,1724649058445,-668.09,0.00013105,2]
[335977708,1724649058454,-2456.83,0.00013105,2]
[335977709,1724649058463,-10505.82,0.00013105,2]
[335977710,1724649058473,-500.0,0.00013105,2]
[335977711,1724649058482,-827.03,0.00013105,2]
[335977712,1724649058492,-1111.15,0.00013105,2]
[335977713,1724649058501,-596.97,0.00013105,2]
[335977714,1724649058511,-500.0,0.00013105,2]
[335977715,1724649058520,-548.14,0.00013105,2]
[335977716,1724649058531,-538.39,0.00013105,2]
[335977717,1724649058540,-500.0,0.00013105,2]
[335977718,1724649058550,-500.0,0.00013105,2]
[335977719,1724649058560,-648.35,0.00013105,2]
[335977720,1724649058570,-554.51,0.00013105,2]
[335977721,1724649058579,-500.0,0.00013105,2]
[335977722,1724649058589,-562.31,0.00013105,2]
[335977723,1724649058599,-565.43,0.00013105,2]
[335977724,1724649058608,-945.04,0.00013105,2]
[335977725,1724649058618,-503.52,0.00013105,2]
[335977726,1724649058627,-500.0,0.00013105,2]
[335977727,1724649058637,-850.29,0.00013105,2]
[335977728,1724649058648,-500.0,0.00013105,2]
[335977729,1724649058656,-2819.77,0.00013105,2]
[335977730,1724649058666,-865.47,0.00013105,2]
[335977731,1724649058675,-500.0,0.00013105,2]
[335977732,1724649058684,-645.28,0.00013105,2]
[335977733,1724649058694,-500.0,0.00013105,2]
[335977734,1724649058703,-500.0,0.00013105,2]
[335977735,1724649058713,-699.5,0.00013105,2]
[335977736,1724649058722,-670.07,0.00013105,2]
[335977737,1724649058732,-1103.64,0.00013105,2]
[335977738,1724649058741,-268.58684156,0.00013105,2]
[335977739,1724649058750,-500.0,0.00013106,2]
[335977740,1724649058759,-414.61317114,0.00013106,2]
[335977741,1724649058768,-500.0,0.00013106,2]
[335977742,1724649058777,-500.0,0.00013106,2]
[335977743,1724649058792,-582.58,0.00013106,2]
[335977744,1724649058801,-500.0,0.00013106,2]
[335977745,1724649058811,-647.39,0.00013106,2]
[335977746,1724649058820,-500.0,0.00013106,2]
[335977747,1724649058830,-500.0,0.00013106,2]
[335977748,1724649058839,-546.62,0.00013106,2]
[335977749,1724649058848,-500.0,0.00013106,2]
[335977750,1724649058859,-500.0,0.00013106,2]
[335977751,1724649058869,-500.0,0.00013106,2]
[335977752,1724649058879,-500.0,0.00013106,2]
[335977753,1724649058890,-500.0,0.00013106,2]
[335977754,1724649058899,-568.82,0.00013106,2]
[335977755,1724649058908,-500.0,0.00013106,2]
[335977756,1724649058918,-500.0,0.00013106,2]
[335977757,1724649058928,-1851.29332,0.00013106,2]
[335977758,1724649058937,-1851.29332,0.00013106,2]
[335977759,1724649058947,-500.0,0.00013106,2]
[335977760,1724649058957,-500.0,0.00013106,2]
[335977761,1724649058967,-218.0644595,0.00013106,2]
[335977762,1724649058976,-500.0,0.00013106,2]
[335977763,1724649058986,-500.0,0.00013106,2]
[335977764,1724649058995,-500.0,0.00013106,2]
[335977765,1724649059005,-550.38,0.00013106,2]
[335977766,1724649059014,-500.0,0.00013106,2]
[335977767,1724649059023,-753.93,0.00013106,2]
[335977768,1724649059033,-500.0,0.00013106,2]
[335977769,1724649059042,-824.25,0.00013106,2]
[335977770,1724649059051,-500.0,0.00013106,2]
[335977771,1724649059061,-500.0,0.00013106,2]
[335977772,1724649059071,-500.0,0.00013106,2]
[335977773,1724649059080,-519.23,0.00013106,2]
[335977774,1724649059090,-500.0,0.00013106,2]
[335977775,1724649059100,-528.11,0.00013106,2]
[335977776,1724649059110,-500.0,0.00013106,2]
[335977777,1724649059119,-500.0,0.00013106,2]
[335977778,1724649059129,-500.0,0.00013106,2]
[335977779,1724649059139,-603.47,0.00013106,2]
[335977780,1724649059149,-731.56,0.00013106,2]
[335977781,1724649059159,-500.0,0.00013106,2]
[335977782,1724649059168,-500.0,0.00013106,2]
[335977783,1724649059178,-591.24,0.00013106,2]
[335977784,1724649059188,-867.45,0.00013106,2]
[335977785,1724649059199,-552.71,0.00013106,2]
[335977786,1724649059209,-785.63,0.00013106,2]
[335977787,1724649059219,-500.0,0.00013106,2]
[335977788,1724649059228,-500.0,0.00013106,2]
[335977789,1724649059237,-744.49,0.00013106,2]
[335977790,1724649059247,-500.0,0.00013106,2]
[335977791,1724649059256,-711.36,0.00013106,2]
[335977792,1724649059266,-500.0,0.00013106,2]
[335977793,1724649059276,-500.0,0.00013106,2]
[335977794,1724649059285,-500.0,0.00013106,2]
[335977795,1724649059295,-500.0,0.00013106,2]
[335977796,1724649059304,-671.22,0.00013106,2]
[335977797,1724649059314,-500.0,0.00013106,2]
[335977798,1724649059324,-500.0,0.00013106,2]
[335977799,1724649059334,-689.91,0.00013106,2]
[335977800,1724649059343,-500.0,0.00013106,2]
[335977801,1724649059352,-842.96,0.00013106,2]
[335977802,1724649059361,-1345.74,0.00013106,2]
[335977803,1724649059370,-500.0,0.00013106,2]
[335977804,1724649059380,-929.31,0.00013106,2]
[335977805,1724649059390,-500.0,0.00013106,2]
[335977806,1724649059399,-686.14,0.00013106,2]
[335977807,1724649059409,-806.75,0.00013106,2]
[335977808,1724649059418,-652.57,0.00013106,2]
[335977809,1724649059427,-692.43,0.00013106,2]
[335977810,1724649059436,-762.28,0.00013106,2]
[335977811,1724649059446,-500.0,0.00013106,2]
[335977812,1724649059455,-500.0,0.00013106,2]
[335977813,1724649059464,-500.0,0.00013106,2]
[335977814,1724649059474,-500.0,0.00013106,2]
[335977815,1724649059483,-500.0,0.00013106,2]
[335977816,1724649059493,-500.0,0.00013106,2]
[335977817,1724649059502,-1000.0,0.00013121,2]
[335977818,1724649059511,-863.00525169,0.00013121,2]
[335977819,1724649059521,-1028.76901252,0.00013121,2]
[335977820,1724649059532,-1003.99234135,0.00013121,2]
[335977821,1724649059542,-1000.0,0.00013121,2]
[335977822,1724649059552,-187.873,0.00013162,2]
[335977823,1724649059562,-420.0,0.0001321,2]
[335977824,1724649059572,-602.05167627,0.00013376,2]
[335977825,1724649059582,-957.96,0.00013379,2]
[335977826,1724649059592,-687.27,0.00013379,2]
[335977827,1724649059602,-1154.3,0.00013379,2]
[335977828,1724649059612,-825.92,0.00013379,2]
[335977829,1724649059622,-500.0,0.00013379,2]
[335977830,1724649059632,-500.0,0.00013379,2]
[335977831,1724649059643,-500.0,0.00013379,2]
[335977832,1724649059652,-500.0,0.00013379,2]
[335977833,1724649059662,-761.21,0.00013379,2]
[335977834,1724649059672,-615.86,0.00013379,2]
[335977835,1724649059681,-500.0,0.00013379,2]
[335977836,1724649059691,-500.0,0.00013379,2]
[335977837,1724649059700,-673.03,0.00013379,2]
[335977838,1724649059709,-538.19,0.00013379,2]
[335977839,1724649059718,-989.16,0.00013379,2]
[335977840,1724649059728,-500.0,0.00013379,2]
[335977841,1724649059737,-512.4,0.00013379,2]
[335977842,1724649059747,-825.72,0.00013379,2]
[335977843,1724649059756,-500.0,0.00013379,2]
[335977844,1724649059765,-500.0,0.00013379,2]
[335977845,1724649059777,-500.0,0.00013379,2]
[335977846,1724649059797,-500.0,0.00013379,2]
[335977847,1724649059812,-725.5,0.00013379,2]
[335977848,1724649059827,-500.0,0.00013379,2]
[335977849,1724649059840,-500.0,0.00013379,2]
[335977850,1724649059854,-500.0,0.00013379,2]
[335977851,1724649059869,-500.0,0.00013379,2]
[335977852,1724649059883,-702.31,0.00013379,2]
[335977853,1724649059899,-543.32,0.00013379,2]
[335977854,1724649059915,-1152.29,0.00013379,2]
[335977855,1724649059929,-500.0,0.00013379,2]
[335977856,1724649059943,-500.0,0.00013379,2]
[335977857,1724649059957,-500.0,0.00013379,2]
[335977858,1724649059971,-500.0,0.00013379,2]
[335977859,1724649059984,-500.0,0.00013379,2]
[335977860,1724649059996,-547.68,0.00013379,2]
[335977861,1724649060010,-500.0,0.00013379,2]
[335977862,1724649060024,-1088.82,0.00013379,2]
[335977863,1724649060039,-651.93,0.00013379,2]
[335977864,1724649060055,-500.0,0.00013379,2]
[335977865,1724649060070,-500.0,0.00013379,2]
[335977866,1724649060084,-1170.43,0.00013379,2]
[335977867,1724649060096,-500.0,0.00013379,2]
[335977868,1724649060108,-1246.65,0.00013379,2]
[335977869,1724649060120,-273.53139726,0.00013379,2]
[335977870,1724649060137,-835.9,0.00013379,2]
[335977871,1724649060150,-1121.95,0.00013379,2]
[335977872,1724649060163,-500.0,0.00013379,2]
[335977873,1724649060175,-609.68,0.00013379,2]
[335977874,1724649060190,-660.54,0.00013379,2]
[335977875,1724649060203,-654.35,0.00013379,2]
[335977876,1724649060214,-961.85,0.00013379,2]
[335977877,1724649060226,-1056.58,0.00013379,2]
[335977878,1724649060238,-500.0,0.00013379,2]
[335977879,1724649060251,-500.0,0.00013379,2]
[335977880,1724649060265,-555.4,0.00013379,2]
[335977881,1724649060277,-517.36,0.00013379,2]
[335977882,1724649060290,-827.46,0.00013379,2]
[335977883,1724649060303,-500.0,0.00013379,2]
[335977884,1724649060315,-500.0,0.00013379,2]
[335977885,1724649060327,-500.0,0.00013379,2]
[335977886,1724649060339,-500.0,0.00013379,2]
[335977887,1724649060351,-519.04,0.00013379,2]
[335977888,1724649060363,-830.02,0.00013379,2]
[335977889,1724649060376,-536.42,0.00013379,2]
[335977890,1724649060389,-947.6,0.00013379,2]
[335977891,1724649060402,-500.0,0.00013379,2]
[335977892,1724649060414,-1003.14,0.00013379,2]
[335977893,1724649060426,-757.26,0.00013379,2]
[335977894,1724649060438,-500.0,0.00013379,2]
[335977895,1724649060450,-500.0,0.00013379,2]
[335977896,1724649060462,-500.0,0.00013379,2]
[335977897,1724649060473,-500.0,0.00013379,2]
[335977898,1724649060485,-798.89,0.00013379,2]
[335977899,1724649060497,-707.52,0.00013379,2]
[335977900,1724649060508,-1168.99,0.00013379,2]
[335977901,1724649060523,-694.96,0.00013379,2]
[335977902,1724649060537,-589.78,0.00013379,2]
[335977903,1724649060550,-863.09,0.00013379,2]
[335977904,1724649060564,-640.26,0.00013379,2]
[335977905,1724649060576,-500.0,0.00013379,2]
[335977906,1724649060588,-662.41,0.00013379,2]
[335977907,1724649060603,-500.0,0.00013379,2]
[335977908,1724649060616,-500.0,0.00013379,2]
[335977909,1724649060629,-657.06,0.00013379,2]
[335977910,1724649060644,-500.0,0.00013379,2]
[335977911,1724649060656,-1098.49,0.00013379,2]
[335977912,1724649060670,-393.72504825,0.00013379,2]
[335977913,1724649060682,-526.07081679,0.00013379,2]
[335977914,1724649060694,-500.0,0.00013379,2]
[335977915,1724649060706,-500.0,0.00013379,2]
[335977916,1724649060718,-500.0,0.00013379,2]
[335977917,1724649060730,-500.0,0.00013379,2]
[335977918,1724649060742,-555.54,0.00013379,2]
[335977919,1724649060754,-500.0,0.00013379,2]
[335977920,1724649060767,-1037.99,0.00013379,2]
[335977921,1724649060778,-500.0,0.00013379,2]
[335977922,1724649060794,-852.27,0.00013379,2]
[335977923,1724649060806,-500.0,0.00013379,2]
[335977924,1724649060818,-500.0,0.00013379,2]
[335977925,1724649060835,-500.0,0.00013379,2]
[335977926,1724649060847,-500.0,0.00013379,2]
[335977927,1724649060864,-500.0,0.00013379,2]
[335977928,1724649060876,-505.85,0.00013379,2]
[335977929,1724649060888,-569.31,0.00013379,2]
[335977930,1724649060901,-500.0,0.00013379,2]
[335977931,1724649060916,-500.0,0.00013379,2]
[335977932,1724649060930,-546.22,0.00013379,2]
[335977933,1724649060944,-812.37,0.00013379,2]
[335977934,1724649060958,-504.99,0.00013379,2]
[335977935,1724649060970,-427.15862837,0.00013379,2]
[335977936,1724649061736,500.0,0.00012009,2]
[335977937,1724649061791,7983.51079151,0.00011999,2]
[335977939,1724649061858,500.0,0.00012009,2]
[335977940,1724649062026,-500.0,0.00012283,2]
[335977941,1724649062036,-500.0,0.00012557,2]
[335977942,1724649062048,-565.55,0.00012831,2]
[335977943,1724649062059,-500.0,0.00012831,2]
[335977944,1724649062069,-565.55,0.00013105,2]
[335977945,1724649062079,-500.0,0.00013105,2]
[335977946,1724649062091,-72.84137163,0.00013379,2]
[335977947,1724649062103,-1205.5,0.00013379,2]
[335977948,1724649062112,-500.0,0.00013379,2]
[335977949,1724649062121,-500.0,0.00013379,2]
[335977950,1724649062133,-646.06,0.00013379,2]
[335977951,1724649062146,-500.0,0.00013379,2]
[335977952,1724649062158,-500.0,0.00013379,2]
[335977953,1724649062168,-500.0,0.00013379,2]
[335977954,1724649062180,-532.7,0.00013379,2]
[335977955,1724649062191,-1099.24,0.00013379,2]
[335977956,1724649062202,-500.0,0.00013379,2]
[335977957,1724649062214,-500.0,0.00013379,2]
[335977958,1724649062225,-1088.34,0.00013379,2]
[335977959,1724649062236,-500.0,0.00013379,2]
[335977960,1724649062246,-318.22419931,0.00013379,2]
[335977961,1724649062256,-500.0,0.00013379,2]
[335977962,1724649062266,-823.46,0.00013379,2]
[335977963,1724649062276,-573.51,0.00013379,2]
[335977964,1724649062287,-721.03,0.00013379,2]
[335977965,1724649062299,-609.67,0.00013379,2]
[335977966,1724649062311,-519.9009568,0.00013379,2]
[335977967,1724649062322,-500.0,0.00013379,2]
[335977968,1724649062334,-500.0,0.00013379,2]
[335977969,1724649062346,-1188.03,0.00013379,2]
[335977970,1724649062357,-500.0,0.00013379,2]
[335977971,1724649062369,-991.92,0.00013379,2]
[335977972,1724649062380,-500.0,0.00013379,2]
[335977973,1724649062390,-529.81,0.00013379,2]
[335977974,1724649062400,-1116.442269,0.00013379,2]
[335977975,1724649062412,-1116.442269,0.00013379,2]
[335977976,1724649062423,-11872.55,0.00013379,2]
[335977977,1724649062434,-718.89,0.00013379,2]
[335977978,1724649062445,-500.0,0.00013379,2]
[335977979,1724649062458,-3163.64,0.00013379,2]
[335977980,1724649062469,-500.0,0.00013379,2]
[335977981,1724649062480,-907.29,0.00013379,2]
[335977982,1724649062491,-701.54,0.00013379,2]
[335977983,1724649062501,-807.87,0.00013379,2]
[335977984,1724649062510,-586.49,0.00013379,2]
[335977985,1724649062519,-500.0,0.00013379,2]
[335977986,1724649062529,-890.36,0.00013379,2]
[335977987,1724649062539,-539.88,0.00013379,2]
[335977988,1724649062548,-500.0,0.00013379,2]
[335977989,1724649062557,-4142.01,0.00013379,2]
[335977990,1724649062567,-500.0,0.00013379,2]
[335977991,1724649062576,-586.15,0.00013379,2]
[335977992,1724649062585,-707.68,0.00013379,2]
[335977993,1724649062594,-500.0,0.00013379,2]
[335977994,1724649062603,-1199.0,0.00013379,2]
[335977995,1724649062613,-584.16,0.00013379,2]
[335977996,1724649062622,-500.0,0.00013379,2]
[335977997,1724649062632,-500.0,0.00013379,2]
[335977998,1724649062642,-549.32,0.00013379,2]
[335977999,1724649062651,-500.0,0.00013379,2]
[335978000,1724649062660,-561.76,0.00013379,2]
[335978001,1724649062670,-1481.24,0.00013379,2]
[335978002,1724649062679,-896.92,0.00013379,2]
[335978003,1724649062688,-500.0,0.00013379,2]
[335978004,1724649062697,-4972.42,0.00013379,2]
[335978005,1724649062707,-685.39,0.00013379,2]
[335978006,1724649062716,-500.0,0.00013379,2]
[335978007,1724649062725,-500.0,0.00013379,2]